lending/lending_fUSD_20250719
["ID","MTS","AMOUNT","RATE_DAILY","PERIOD"]
[373281853,1752927097075,-625.37,0.00020931,2]
[373281854,1752927097084,-480.0,0.00020931,2]
[373281855,1752927097093,-7262.97,0.00020931,2]
[373281856,1752927097103,-996.66,0.00020931,2]
[373281857,1752927097112,-814.82,0.00020931,2]
[373281858,1752927097122,-814.36,0.00020931,2]
[373281859,1752927097131,-480.0,0.00020931,2]
[373281860,1752927097140,-495.52,0.00020931,2]
[373281861,1752927097150,-861.88,0.00020931,2]
[373281862,1752927097159,-945.47,0.00020931,2]
[373281863,1752927097168,-553.5,0.00020931,2]
[373281864,1752927097178,-519.08,0.00020931,2]
[373281865,1752927097187,-643.49157141,0.00020938,2]
[373281866,1752927097197,-170.85,0.0002094,2]
[373281867,1752927097207,-9552.16786547,0.00020941,2]
[373281868,1752927097216,-5069.07706645,0.00020959,2]
[373281869,1752927097226,-5158.87338134,0.00020959,2]
[373281870,1752927097235,-9905.5980765,0.00020996,2]
[373281871,1752927097244,-500.0,0.00020999,2]
[373281872,1752927097253,-500.0,0.00020999,2]
[373281873,1752927097263,-500.0,0.00020999,2]
[373281874,1752927097272,-94790.04878694,0.00021,2]
[373281875,1752927097282,-20000.0,0.00021,2]
[373281876,1752927097291,-24263.45871055,0.00021,7]
[373281877,1752927097300,-1164.69654096,0.00021,2]
[373281878,1752927097310,-192.23041294,0.00021,2]
[373281879,1752927097319,-2578.6685021,0.00021,2]
[373281880,1752927097329,-151.0,0.00021,2]
[373281881,1752927097339,-151.0,0.00021,2]
[373281882,1752927097348,-151.0,0.00021,2]
[373281883,1752927097357,-151.0,0.00021,2]
[373281884,1752927097367,-476.80070012,0.00021,7]
[373281885,1752927097376,-644.324241,0.00021,2]
[373281886,1752927097385,-644.324241,0.00021,2]
[373281887,1752927097395,-210.82967408,0.00021,7]
[373281888,1752927097404,-241.07873,0.00021,2]
[373281889,1752927097414,-241.07873,0.00021,2]
[373281890,1752927097423,-150.0,0.00021007,2]
[373281891,1752927097433,-150.0,0.00021007,2]
[373281892,1752927097442,-150.0,0.00021007,2]
[373281893,1752927097451,-150.069,0.00021007,2]
[373281894,1752927097460,-150.303,0.00021007,2]
[373281895,1752927097470,-150.0,0.00021007,2]
[373281896,1752927097479,-150.144,0.00021007,2]
[373281897,1752927097491,-150.09,0.00021018,2]
[373281898,1752927097500,-150.0,0.00021018,2]
[373281899,1752927097510,-150.0,0.00021018,2]
[373281900,1752927097520,-151.0,0.00021018,2]
[373281901,1752927097530,-200.0,0.00021029,2]
[373281902,1752927097540,-156.39173529,0.00021031,2]
[373281903,1752927097550,-150.071,0.0002104,2]
[373281904,1752927097559,-150.026,0.0002104,2]
[373281905,1752927097569,-151.0,0.00021041,2]
[373281906,1752927097580,-151.0,0.00021041,2]
[373281907,1752927097593,-152.071712,0.00021041,2]
[373281908,1752927097602,-151.0,0.00021041,2]
[373281909,1752927097611,-151.0,0.00021041,2]
[373281910,1752927097621,-151.0,0.00021041,2]
[373281911,1752927097632,-491.25,0.00021041,2]
[373281912,1752927097641,-151.0,0.00021041,2]
[373281913,1752927097651,-151.0,0.00021041,2]
[373281914,1752927097660,-151.0,0.00021041,2]
[373281915,1752927097670,-348.02,0.00021041,2]
[373281916,1752927097680,-527.7,0.00021041,2]
[373281917,1752927097689,-510.82,0.00021041,2]
[373281918,1752927097699,-480.0,0.00021041,2]
[373281919,1752927097709,-492.22,0.00021041,2]
[373281920,1752927097719,-564.73,0.00021041,2]
[373281921,1752927097729,-186.48145568,0.00021041,2]
[373281922,1752927097739,-480.0,0.00021041,2]
[373281923,1752927097749,-159.485168,0.00021041,2]
[373281924,1752927097759,-159.485168,0.00021041,2]
[373281925,1752927097768,-480.0,0.00021041,2]
[373281926,1752927097777,-572.13,0.00021041,2]
[373281927,1752927097787,-480.0,0.00021041,2]
[373281928,1752927097796,-151.0,0.00021041,2]
[373281929,1752927097806,-580.0526648,0.00021041,2]
[373281930,1752927097815,-509.18,0.00021041,2]
[373281931,1752927097825,-1272.92,0.00021041,2]
[373281932,1752927097835,-480.0,0.00021041,2]
[373281933,1752927097844,-170.630349,0.00021041,2]
[373281934,1752927097854,-632.75,0.00021041,2]
[373281935,1752927097863,-170.630349,0.00021041,2]
[373281936,1752927097873,-632.62,0.00021041,2]
[373281937,1752927097883,-480.0,0.00021041,2]
[373281938,1752927097893,-679.94,0.00021041,2]
[373281939,1752927097902,-151.0,0.00021041,2]
[373281940,1752927097912,-480.0,0.00021041,2]
[373281941,1752927097921,-1585.57,0.00021041,2]
[373281942,1752927097931,-480.0,0.00021041,2]
[373281943,1752927097940,-503.15,0.00021041,2]
[373281944,1752927097950,-571.95,0.00021041,2]
[373281945,1752927097959,-480.0,0.00021041,2]
[373281946,1752927097969,-581.29,0.00021041,2]
[373281947,1752927097979,-480.0,0.00021041,2]
[373281948,1752927097990,-268.20133978,0.00021041,2]
[373281949,1752927097999,-633.45,0.00021041,2]
[373281950,1752927098009,-490.15,0.00021041,2]
[373281951,1752927098018,-571.94,0.00021041,2]
[373281952,1752927098028,-1050.85,0.00021041,2]
[373281953,1752927098037,-1313.33,0.00021041,2]
[373281954,1752927098046,-480.0,0.00021041,2]
[373281955,1752927098056,-1874.03,0.00021041,2]
[373281956,1752927098066,-480.0,0.00021041,2]
[373281957,1752927098075,-824.64,0.00021041,2]
[373281958,1752927098085,-480.0,0.00021041,2]
[373281959,1752927098095,-1726.56,0.00021041,2]
[373281960,1752927098104,-502.1,0.00021041,2]
[373281961,1752927098114,-480.0,0.00021041,2]
[373281962,1752927098124,-622.62,0.00021041,2]
[373281963,1752927098133,-3664.0,0.00021041,2]
[373281964,1752927098143,-595.72,0.00021041,2]
[373281965,1752927098153,-480.0,0.00021041,2]
[373281966,1752927098162,-607.67,0.00021041,2]
[373281967,1752927098172,-480.0,0.00021041,2]
[373281968,1752927098181,-480.0,0.00021041,2]
[373281969,1752927098191,-759.29,0.00021041,2]
[373281970,1752927098200,-1312.07,0.00021041,2]
[373281971,1752927098209,-622.7,0.00021041,2]
[373281972,1752927098218,-1939.98,0.00021041,2]
[373281973,1752927098228,-1042.32,0.00021041,2]
[373281974,1752927098237,-480.0,0.00021041,2]
[373281975,1752927098247,-516.59,0.00021041,2]
[373281976,1752927098256,-611.66,0.00021041,2]
[373281977,1752927098265,-480.0,0.00021041,2]
[373281978,1752927098274,-883.72,0.00021041,2]
[373281979,1752927098284,-480.0,0.00021041,2]
[373281980,1752927098294,-480.0,0.00021041,2]
[373281981,1752927098305,-1113.11,0.00021041,2]
[373281982,1752927098315,-1761.18,0.00021041,2]
[373281983,1752927098324,-457.08,0.00021041,2]
[373281984,1752927098333,-671.88,0.00021041,2]
[373281985,1752927098343,-638.9,0.00021041,2]
[373281986,1752927098354,-808.38,0.00021041,2]
[373281987,1752927098362,-587.14,0.00021041,2]
[373281988,1752927098371,-480.0,0.00021041,2]
[373281989,1752927098380,-480.0,0.00021041,2]
[373281990,1752927098390,-2730.74,0.00021041,2]
[373281991,1752927098399,-480.0,0.00021041,2]
[373281992,1752927098407,-480.0,0.00021041,2]
[373281993,1752927098416,-480.0,0.00021041,2]
[373281994,1752927098425,-480.0,0.00021041,2]
[373281995,1752927098434,-716.69,0.00021041,2]
[373281996,1752927098444,-526.79,0.00021041,2]
[373281997,1752927098453,-480.0,0.00021041,2]
[373281998,1752927098462,-2050.61,0.00021041,2]
[373281999,1752927098471,-654.07,0.00021041,2]
[373282000,1752927098480,-480.0,0.00021041,2]
[373282001,1752927098491,-1300.36,0.00021041,2]
[373282002,1752927098500,-696.21,0.00021041,2]
[373282003,1752927098509,-1273.72,0.00021041,2]
[373282004,1752927098519,-532.37,0.00021041,2]
[373282005,1752927098528,-580.99,0.00021041,2]
[373282006,1752927098538,-8406.08,0.00021041,2]
[373282007,1752927098548,-3098.53,0.00021041,2]
[373282008,1752927098557,-779.14,0.00021041,2]
[373282009,1752927098567,-625.82,0.00021041,2]
[373282010,1752927098577,-480.0,0.00021041,2]
[373282011,1752927098589,-480.0,0.00021041,2]
[373282012,1752927098598,-436.33,0.00021041,2]
[373282013,1752927098610,-480.0,0.00021041,2]
[373282014,1752927098619,-4536.51,0.00021041,2]
[373282015,1752927098630,-482.89,0.00021041,2]
[373282016,1752927098640,-620.34,0.00021041,2]
[373282017,1752927098651,-625.37,0.00021041,2]
[373282018,1752927098661,-480.0,0.00021041,2]
[373282019,1752927098671,-7262.97,0.00021041,2]
[373282020,1752927098682,-996.66,0.00021041,2]
[373282021,1752927098692,-814.82,0.00021041,2]
[373282022,1752927098701,-814.36,0.00021041,2]
[373282023,1752927098711,-231.22,0.00021041,2]
[373282024,1752927098721,-495.52,0.00021041,2]
[373282025,1752927098731,-861.88,0.00021041,2]
[373282026,1752927098741,-945.47,0.00021041,2]
[373282027,1752927098751,-553.5,0.00021041,2]
[373282028,1752927098761,-519.08,0.00021041,2]
[373282029,1752927098770,-600.0,0.00021049,2]
[373282030,1752927098780,-151.0,0.00021049,2]
[373282031,1752927098790,-10272.10520533,0.00021051,2]
[373282032,1752927098801,-150.13,0.00021071,2]
[373282033,1752927098811,-187.72,0.00021078,2]
[373282034,1752927098820,-2351.0,0.0002108,2]
[373282035,1752927098830,-500.0,0.00021096,2]
[373282036,1752927098840,-500.0,0.00021096,2]
[373282037,1752927098849,-3635.0,0.00021096,2]
[373282038,1752927098859,-1089.0,0.00021096,2]
[373282039,1752927098868,-500.0,0.00021096,2]
[373282040,1752927098879,-150.0,0.00021096,2]
[373282041,1752927098888,-444.0,0.00021096,2]
[373282042,1752927098898,-10652.17309792,0.00021106,2]
[373282043,1752927098908,-173.922332,0.0002112,2]
[373282044,1752927098917,-500.0,0.0002112,2]
[373282045,1752927098926,-500.0,0.0002112,2]
[373282046,1752927098935,-479.10385899,0.00021145,2]
[373282047,1752927098944,-217.214018,0.0002115,2]
[373282048,1752927098954,-217.214018,0.0002115,2]
[373282049,1752927098963,-491.25,0.0002115,2]
[373282050,1752927098973,-151.0,0.0002115,2]
[373282051,1752927098982,-527.7,0.0002115,2]
[373282052,1752927098992,-510.82,0.0002115,2]
[373282053,1752927099001,-480.0,0.0002115,2]
[373282054,1752927099011,-492.22,0.0002115,2]
[373282055,1752927099020,-564.73,0.0002115,2]
[373282056,1752927099029,-480.0,0.0002115,2]
[373282057,1752927099039,-480.0,0.0002115,2]
[373282058,1752927099048,-572.13,0.0002115,2]
[373282059,1752927099058,-480.0,0.0002115,2]
[373282060,1752927099067,-509.18,0.0002115,2]
[373282061,1752927099077,-1272.92,0.0002115,2]
[373282062,1752927099086,-480.0,0.0002115,2]
[373282063,1752927099095,-151.0,0.0002115,2]
[373282064,1752927099104,-632.75,0.0002115,2]
[373282065,1752927099114,-632.62,0.0002115,2]
[373282066,1752927099124,-480.0,0.0002115,2]
[373282067,1752927099134,-679.94,0.0002115,2]
[373282068,1752927099143,-480.0,0.0002115,2]
[373282069,1752927099153,-1585.57,0.0002115,2]
[373282070,1752927099163,-480.0,0.0002115,2]
[373282071,1752927099173,-503.15,0.0002115,2]
[373282072,1752927099183,-571.95,0.0002115,2]
[373282073,1752927099192,-480.0,0.0002115,2]
[373282074,1752927099203,-581.29,0.0002115,2]
[373282075,1752927099212,-590.96,0.0002115,2]
[373282076,1752927099221,-633.45,0.0002115,2]
[373282077,1752927099231,-490.15,0.0002115,2]
[373282078,1752927099242,-571.94,0.0002115,2]
[373282079,1752927099251,-1050.85,0.0002115,2]
[373282080,1752927099260,-1313.33,0.0002115,2]
[373282081,1752927099270,-480.0,0.0002115,2]
[373282082,1752927099279,-1874.03,0.0002115,2]
[373282083,1752927099288,-480.0,0.0002115,2]
[373282084,1752927099298,-824.64,0.0002115,2]
[373282085,1752927099307,-480.0,0.0002115,2]
[373282086,1752927099317,-1726.56,0.0002115,2]
[373282087,1752927099327,-502.1,0.0002115,2]
[373282088,1752927099336,-480.0,0.0002115,2]
[373282089,1752927099346,-622.62,0.0002115,2]
[373282090,1752927099355,-3664.0,0.0002115,2]
[373282091,1752927099366,-480.0,0.0002115,2]
[373282092,1752927099375,-607.67,0.0002115,2]
[373282093,1752927099385,-480.0,0.0002115,2]
[373282094,1752927099395,-480.0,0.0002115,2]
[373282095,1752927099404,-759.29,0.0002115,2]
[373282096,1752927099414,-1312.07,0.0002115,2]
[373282097,1752927099423,-622.7,0.0002115,2]
[373282098,1752927099433,-1042.32,0.0002115,2]
[373282099,1752927099444,-331.28,0.0002115,2]
[373282100,1752927099454,-516.59,0.0002115,2]
[373282101,1752927099463,-1939.98,0.0002115,2]
[373282102,1752927099472,-611.66,0.0002115,2]
[373282103,1752927099482,-480.0,0.0002115,2]
[373282104,1752927099494,-883.72,0.0002115,2]
[373282105,1752927099504,-480.0,0.0002115,2]
[373282106,1752927099513,-480.0,0.0002115,2]
[373282107,1752927099522,-1113.11,0.0002115,2]
[373282108,1752927099532,-1761.18,0.0002115,2]
[373282109,1752927099541,-671.88,0.0002115,2]
[373282110,1752927099551,-638.9,0.0002115,2]
[373282111,1752927099561,-483.054661,0.0002115,2]
[373282112,1752927099571,-808.38,0.0002115,2]
[373282113,1752927099580,-483.054661,0.0002115,2]
[373282114,1752927099593,-587.14,0.0002115,2]
[373282115,1752927099603,-480.0,0.0002115,2]
[373282116,1752927099612,-444.28691473,0.0002115,2]
[373282117,1752927099622,-2730.74,0.0002115,2]
[373282118,1752927099634,-480.0,0.0002115,2]
[373282119,1752927099644,-318.32330448,0.0002115,2]
[373282120,1752927099654,-480.0,0.0002115,2]
[373282121,1752927099664,-480.0,0.0002115,2]
[373282122,1752927099674,-716.69,0.0002115,2]
[373282123,1752927099684,-526.79,0.0002115,2]
[373282124,1752927099694,-480.0,0.0002115,2]
[373282125,1752927099704,-2050.61,0.0002115,2]
[373282126,1752927099714,-654.07,0.0002115,2]
[373282127,1752927099724,-480.0,0.0002115,2]
[373282128,1752927099735,-1300.36,0.0002115,2]
[373282129,1752927099745,-696.21,0.0002115,2]
[373282130,1752927099754,-1273.72,0.0002115,2]
[373282131,1752927099764,-532.37,0.0002115,2]
[373282132,1752927099773,-8406.08,0.0002115,2]
[373282133,1752927099783,-3098.53,0.0002115,2]
[373282134,1752927099792,-779.14,0.0002115,2]
[373282135,1752927099802,-625.82,0.0002115,2]
[373282136,1752927099811,-480.0,0.0002115,2]
[373282137,1752927099821,-287.43,0.0002115,2]
[373282138,1752927099830,-513.26,0.0002115,2]
[373282139,1752927099839,-4536.51,0.0002115,2]
[373282140,1752927099850,-482.89,0.0002115,2]
[373282141,1752927099869,-620.34,0.0002115,2]
[373282142,1752927099880,-625.37,0.0002115,2]
[373282143,1752927099890,-480.0,0.0002115,2]
[373282144,1752927099899,-7262.97,0.0002115,2]
[373282145,1752927099909,-996.66,0.0002115,2]
[373282146,1752927099918,-814.82,0.0002115,2]
[373282147,1752927099928,-814.36,0.0002115,2]
[373282148,1752927099937,-495.52,0.0002115,2]
[373282149,1752927099947,-861.88,0.0002115,2]
[373282150,1752927099956,-945.47,0.0002115,2]
[373282151,1752927099965,-553.5,0.0002115,2]
[373282152,1752927099975,-519.08,0.0002115,2]
[373282153,1752927099985,-1216.90080674,0.0002116,2]
[373282154,1752927099995,-1356.57969711,0.00021161,2]
[373282155,1752927100005,-900.0,0.00021164,2]
[373282156,1752927100014,-1000.0,0.00021164,2]
[373282157,1752927100024,-500.0,0.00021164,2]
[373282158,1752927100033,-228.64653747,0.00021169,2]
[373282159,1752927100043,-16141.62354596,0.00021173,2]
[373282160,1752927100053,-200.0,0.0002124,2]
[373282161,1752927100062,-491.25,0.0002126,2]
[373282162,1752927100072,-527.7,0.0002126,2]
[373282163,1752927100085,-510.82,0.0002126,2]
[373282164,1752927100095,-161.1,0.0002126,2]
[373282165,1752927100104,-492.22,0.0002126,2]
[373282166,1752927100115,-564.73,0.0002126,2]
[373282167,1752927100125,-236.808862,0.0002126,2]
[373282168,1752927100135,-480.0,0.0002126,2]
[373282169,1752927100145,-480.0,0.0002126,2]
[373282170,1752927100154,-572.13,0.0002126,2]
[373282171,1752927100164,-173.922332,0.0002126,2]
[373282172,1752927100174,-275.58124263,0.0002126,2]
[373282173,1752927100184,-509.18,0.0002126,2]
[373282174,1752927100194,-1272.92,0.0002126,2]
[373282175,1752927100203,-480.0,0.0002126,2]
[373282176,1752927100212,-632.75,0.0002126,2]
[373282177,1752927100223,-632.62,0.0002126,2]
[373282178,1752927100232,-480.0,0.0002126,2]
[373282179,1752927100244,-679.94,0.0002126,2]
[373282180,1752927100254,-480.0,0.0002126,2]
[373282181,1752927100264,-1585.57,0.0002126,2]
[373282182,1752927100274,-480.0,0.0002126,2]
[373282183,1752927100284,-503.15,0.0002126,2]
[373282184,1752927100294,-571.95,0.0002126,2]
[373282185,1752927100305,-480.0,0.0002126,2]
[373282186,1752927100315,-581.29,0.0002126,2]
[373282187,1752927100325,-633.45,0.0002126,2]
[373282188,1752927100335,-490.15,0.0002126,2]
[373282189,1752927100345,-571.94,0.0002126,2]
[373282190,1752927100355,-1050.85,0.0002126,2]
[373282191,1752927100364,-151.0,0.0002126,2]
[373282192,1752927100374,-1313.33,0.0002126,2]
[373282193,1752927100384,-480.0,0.0002126,2]
[373282194,1752927100394,-1874.03,0.0002126,2]
[373282195,1752927100404,-480.0,0.0002126,2]
[373282196,1752927100414,-824.64,0.0002126,2]
[373282197,1752927100423,-623.4203603,0.0002126,2]
[373282198,1752927100433,-1726.56,0.0002126,2]
[373282199,1752927100443,-502.1,0.0002126,2]
[373282200,1752927100452,-480.0,0.0002126,2]
[373282201,1752927100462,-622.62,0.0002126,2]
[373282202,1752927100472,-3664.0,0.0002126,2]
[373282203,1752927100482,-480.0,0.0002126,2]
[373282204,1752927100492,-607.67,0.0002126,2]
[373282205,1752927100502,-480.0,0.0002126,2]
[373282206,1752927100511,-480.0,0.0002126,2]
[373282207,1752927100521,-759.29,0.0002126,2]
[373282208,1752927100531,-1312.07,0.0002126,2]
[373282209,1752927100542,-622.7,0.0002126,2]
[373282210,1752927100552,-1042.32,0.0002126,2]
[373282211,1752927100562,-516.59,0.0002126,2]
[373282212,1752927100571,-1939.98,0.0002126,2]
[373282213,1752927100582,-644.324241,0.0002126,2]
[373282214,1752927100594,-611.66,0.0002126,2]
[373282215,1752927100604,-644.324241,0.0002126,2]
[373282216,1752927100614,-480.0,0.0002126,2]
[373282217,1752927100624,-883.72,0.0002126,2]
[373282218,1752927100634,-480.0,0.0002126,2]
[373282219,1752927100644,-370.16,0.0002126,2]
[373282220,1752927100654,-1113.11,0.0002126,2]
[373282221,1752927100667,-1761.18,0.0002126,2]
[373282222,1752927100678,-671.88,0.0002126,2]
[373282223,1752927100688,-638.9,0.0002126,2]
[373282224,1752927100698,-808.38,0.0002126,2]
[373282225,1752927100707,-587.14,0.0002126,2]
[373282226,1752927100718,-480.0,0.0002126,2]
[373282227,1752927100727,-2730.74,0.0002126,2]
[373282228,1752927100739,-480.0,0.0002126,2]
[373282229,1752927100749,-595.10990549,0.0002126,2]
[373282230,1752927100758,-480.0,0.0002126,2]
[373282231,1752927100769,-716.69,0.0002126,2]
[373282232,1752927100778,-526.79,0.0002126,2]
[373282233,1752927100788,-480.0,0.0002126,2]
[373282234,1752927100798,-2050.61,0.0002126,2]
[373282235,1752927100808,-654.07,0.0002126,2]
[373282236,1752927100817,-336.61001965,0.0002126,2]
[373282237,1752927100827,-1300.36,0.0002126,2]
[373282238,1752927100838,-696.21,0.0002126,2]
[373282239,1752927100847,-1273.72,0.0002126,2]
[373282240,1752927100858,-532.37,0.0002126,2]
[373282241,1752927100867,-241.07873,0.0002126,2]
[373282242,1752927100878,-8406.08,0.0002126,2]
[373282243,1752927100888,-241.078726,0.0002126,2]
[373282244,1752927100898,-3098.53,0.0002126,2]
[373282245,1752927100907,-779.14,0.0002126,2]
[373282246,1752927100917,-625.82,0.0002126,2]
[373282247,1752927100927,-480.0,0.0002126,2]
[373282248,1752927100937,-4536.51,0.0002126,2]
[373282249,1752927100947,-482.89,0.0002126,2]
[373282250,1752927100957,-620.34,0.0002126,2]
[373282251,1752927100967,-625.37,0.0002126,2]
[373282252,1752927100984,-480.0,0.0002126,2]
[373282253,1752927100994,-7262.97,0.0002126,2]
[373282254,1752927101004,-996.66,0.0002126,2]
[373282255,1752927101014,-814.82,0.0002126,2]
[373282256,1752927101024,-814.36,0.0002126,2]
[373282257,1752927101034,-495.52,0.0002126,2]
[373282258,1752927101044,-861.88,0.0002126,2]
[373282259,1752927101054,-945.47,0.0002126,2]
[373282260,1752927101064,-553.5,0.0002126,2]
[373282261,1752927101074,-519.08,0.0002126,2]
[373282262,1752927101084,-154.71257557,0.00021269,3]
[373282263,1752927101094,-5069.07706645,0.00021273,2]
[373282264,1752927101104,-5158.87338134,0.00021273,2]
[373282265,1752927101115,-247.0,0.0002133,2]
[373282266,1752927101124,-500.0,0.0002134,2]
[373282267,1752927101135,-500.0,0.00021368,2]
[373282268,1752927101146,-151.0,0.00021369,2]
[373282269,1752927101155,-491.25,0.00021369,2]
[373282270,1752927101166,-151.0,0.00021369,2]
[373282271,1752927101176,-151.0,0.00021369,2]
[373282272,1752927101185,-151.0,0.00021369,2]
[373282273,1752927101196,-527.7,0.00021369,2]
[373282274,1752927101206,-510.82,0.00021369,2]
[373282275,1752927101217,-492.22,0.00021369,2]
[373282276,1752927101227,-564.73,0.00021369,2]
[373282277,1752927101239,-484.13,0.00021369,2]
[373282278,1752927101249,-159.485168,0.00021369,2]
[373282279,1752927101259,-159.485168,0.00021369,2]
[373282280,1752927101269,-305.68,0.00021369,2]
[373282281,1752927101279,-572.13,0.00021369,2]
[373282282,1752927101290,-237.462675,0.00021369,2]
[373282283,1752927101300,-509.18,0.00021369,2]
[373282284,1752927101310,-1272.92,0.00021369,2]
[373282285,1752927101320,-274.50652592,0.00021369,2]
[373282286,1752927101330,-170.630349,0.00021369,2]
[373282287,1752927101340,-632.75,0.00021369,2]
[373282288,1752927101351,-170.630349,0.00021369,2]
[373282289,1752927101361,-632.62,0.00021369,2]
[373282290,1752927101371,-429.06,0.00021369,2]
[373282291,1752927101381,-679.94,0.00021369,2]
[373282292,1752927101391,-151.0,0.00021369,2]
[373282293,1752927101401,-264.99593368,0.00021369,2]
[373282294,1752927101411,-1585.57,0.00021369,2]
[373282295,1752927101422,-480.0,0.00021369,2]
[373282296,1752927101432,-503.15,0.00021369,2]
[373282297,1752927101442,-571.95,0.00021369,2]
[373282298,1752927101452,-150.53,0.00021369,2]
[373282299,1752927101462,-581.29,0.00021369,2]
[373282300,1752927101472,-633.45,0.00021369,2]
[373282301,1752927101482,-490.15,0.00021369,2]
[373282302,1752927101499,-571.94,0.00021369,2]
[373282303,1752927101510,-1050.85,0.00021369,2]
[373282304,1752927101519,-1313.33,0.00021369,2]
[373282305,1752927101529,-480.0,0.00021369,2]
[373282306,1752927101539,-1874.03,0.00021369,2]
[373282307,1752927101549,-556.91,0.00021369,2]
[373282308,1752927101559,-824.64,0.00021369,2]
[373282309,1752927101569,-1726.56,0.00021369,2]
[373282310,1752927101580,-502.1,0.00021369,2]
[373282311,1752927101594,-480.0,0.00021369,2]
[373282312,1752927101604,-622.62,0.00021369,2]
[373282313,1752927101614,-3664.0,0.00021369,2]
[373282314,1752927101626,-434.44079802,0.00021369,2]
[373282315,1752927101636,-607.67,0.00021369,2]
[373282316,1752927101645,-480.0,0.00021369,2]
[373282317,1752927101655,-480.0,0.00021369,2]
[373282318,1752927101667,-759.29,0.00021369,2]
[373282319,1752927101677,-622.7,0.00021369,2]
[373282320,1752927101687,-1312.07,0.00021369,2]
[373282321,1752927101697,-1042.32,0.00021369,2]
[373282322,1752927101707,-516.59,0.00021369,2]
[373282323,1752927101716,-1939.98,0.00021369,2]
[373282324,1752927101726,-611.66,0.00021369,2]
[373282325,1752927101736,-480.0,0.00021369,2]
[373282326,1752927101746,-883.72,0.00021369,2]
[373282327,1752927101756,-352.33443643,0.00021369,2]
[373282328,1752927101766,-1113.11,0.00021369,2]
[373282329,1752927101777,-1761.18,0.00021369,2]
[373282330,1752927101787,-671.88,0.00021369,2]
[373282331,1752927101798,-638.9,0.00021369,2]
[373282332,1752927101808,-808.38,0.00021369,2]
[373282333,1752927101818,-587.14,0.00021369,2]
[373282334,1752927101828,-480.0,0.00021369,2]
[373282335,1752927101838,-2730.74,0.00021369,2]
[373282336,1752927101848,-480.0,0.00021369,2]
[373282337,1752927101858,-480.0,0.00021369,2]
[373282338,1752927101868,-716.69,0.00021369,2]
[373282339,1752927101878,-526.79,0.00021369,2]
[373282340,1752927101888,-480.0,0.00021369,2]
[373282341,1752927101897,-2050.61,0.00021369,2]
[373282342,1752927101908,-654.07,0.00021369,2]
[373282343,1752927101918,-1300.36,0.00021369,2]
[373282344,1752927101928,-696.21,0.00021369,2]
[373282345,1752927101938,-1273.72,0.00021369,2]
[373282346,1752927101947,-532.37,0.00021369,2]
[373282347,1752927101957,-8406.08,0.00021369,2]
[373282348,1752927101966,-3098.53,0.00021369,2]
[373282349,1752927101976,-779.14,0.00021369,2]
[373282350,1752927101985,-625.82,0.00021369,2]
[373282351,1752927101996,-480.0,0.00021369,2]
[373282352,1752927102006,-4536.51,0.00021369,2]